[Event "Championnat du monde jeunes U12F"]
[Date "2024.11.24"]
[White "Ejsymont, Blanka"]
[Black "Chovanec, Alice"]
[WhiteElo "1945"]
[BlackElo "1694"]
[Round "9.20"]
[Result "1-0"]
[TimeControl "5400+30"]

1. e4 {[%clk 1:30:59]} 1... c5 {[%clk 1:30:48]} 2. Nf3 {[%clk 1:31:25]} 2... e6
{[%clk 1:31:09]} 3. d4 {[%clk 1:31:54]} 3... cxd4 {[%clk 1:31:28]} 4. Nxd4
{[%clk 1:32:22]} 4... a6 {[%clk 1:31:41]} 5. Bd3 {[%clk 1:32:49]} 5... Nf6
{[%clk 1:30:19]} 6. O-O {[%clk 1:32:23]} 6... Qc7 {[%clk 1:30:24]} 7. c4 {[%clk
1:32:41]} 7... b6 {[%clk 1:28:24]} 8. Nc3 {[%clk 1:33:03]} 8... Bb7 {[%clk
1:28:26]} 9. Qe2 {[%clk 1:33:27]} 9... Nc6 {[%clk 1:26:27]} 10. Nxc6 {[%clk
1:21:17]} 10... dxc6 {[%clk 1:22:21]} 11. e5 {[%clk 1:18:09]} 11... Nd7 {[%clk
1:22:02]} 12. Bf4 {[%clk 1:14:54]} 12... Be7 {[%clk 1:15:54]} 13. Rfe1 {[%clk
1:11:41]} 13... g5 {[%clk 1:07:14]} 14. Bg3 {[%clk 1:04:43]} 14... h5 {[%clk
1:05:59]} 15. h3 {[%clk 1:04:06]} 15... O-O-O {[%clk 1:02:57]} 16. Rab1 {[%clk
0:59:36]} 16... h4 {[%clk 0:51:56]} 17. Bh2 {[%clk 0:59:16]} 17... g4 {[%clk
0:51:57]} 18. Qxg4 {[%clk 0:52:42]} 18... Rdg8 {[%clk 0:50:46]} 19. Qf3 {[%clk
0:44:05]} 19... Rg7 {[%clk 0:49:21]} 20. Bf1 {[%clk 0:34:26]} 20... c5 {[%clk
0:44:41]} 21. Ne4 {[%clk 0:30:37]} 21... Qc6 {[%clk 0:33:47]} 22. Qe3 {[%clk
0:24:45]} 22... Rhg8 {[%clk 0:26:16]} 23. f3 {[%clk 0:24:11]} 23... Bg5 {[%clk
0:22:39]} 24. Bf4 {[%clk 0:20:18]} 24... Be7 {[%clk 0:20:57]} 25. Rbd1 {[%clk
0:19:02]} 25... Qa4 {[%clk 0:18:32]} 26. Rd2 {[%clk 0:15:15]} 26... Nb8 {[%clk
0:14:16]} 27. b3 {[%clk 0:12:09]} 27... Qe8 {[%clk 0:14:27]} 28. Bd3 {[%clk
0:10:10]} 28... Bxe4 {[%clk 0:12:48]} 29. Qxe4 {[%clk 0:06:47]} 29... Nc6 {[%clk
0:12:46]} 30. Bf1 {[%clk 0:06:17]} 30... Kc7 {[%clk 0:11:55]} 31. Be3 {[%clk
0:03:58]} 31... Qc8 {[%clk 0:10:14]} 32. Red1 {[%clk 0:03:07]} 32... Rd8 {[%clk
0:09:36]} 33. Rxd8 {[%clk 0:02:49]} 33... Nxd8 {[%clk 0:09:56]} 34. Bf2 {[%clk
0:02:03]} 34... Nc6 {[%clk 0:08:19]} 35. Bxh4 {[%clk 0:01:51]} 35... Bxh4 {[%clk
0:08:43]} 36. Qxh4 {[%clk 0:02:17]} 36... Nd4 {[%clk 0:08:20]} 37. Rd3 {[%clk
0:00:45]} 37... Qg8 {[%clk 0:07:45]} 38. Kh2 {[%clk 0:00:44]} 38... Rh7 {[%clk
0:07:04]} 39. Qf4 {[%clk 0:00:39]} 39... Qg6 {[%clk 0:06:54]} 40. b4 {[%clk
0:00:37]} 40... Rh5 {[%clk 0:06:20]} 41. bxc5 {[%clk 0:00:36]} 41... bxc5 {[%clk
0:06:48]} 42. g4 {[%clk 0:00:38]} 42... Rh6 {[%clk 0:07:07]} 43. Qe3 {[%clk
0:00:35]} 43... Qh7 {[%clk 0:06:59]} 44. Bg2 {[%clk 0:00:36]} 44... Rg6 {[%clk
0:06:41]} 45. Qd2 {[%clk 0:00:38]} 45... Kb6 {[%clk 0:06:43]} 46. Qb2+ {[%clk
0:00:41]} 46... Kc7 {[%clk 0:06:41]} 47. Qa3 {[%clk 0:00:40]} 47... Kb6 {[%clk
0:06:29]} 48. Qb2+ {[%clk 0:00:36]} 48... Ka7 {[%clk 0:06:21]} 49. f4 {[%clk
0:00:35]} 49... f5 {[%clk 0:05:41]} 50. gxf5 {[%clk 0:00:39]} 50... exf5 {[%clk
0:06:01]} 51. Qf2 {[%clk 0:00:45]} 51... Qc7 {[%clk 0:06:08]} 52. Rg3 {[%clk
0:00:42]} 52... Rb6 {[%clk 0:05:59]} 53. Rg8 {[%clk 0:00:43]} 53... Rb8 {[%clk
0:06:18]} 54. Rxb8 {[%clk 0:00:47]} 54... Qxb8 {[%clk 0:06:46]} 55. Qh4 {[%clk
0:00:51]} 55... Qc7 {[%clk 0:06:34]} 56. Qf6 {[%clk 0:00:52]} 56... a5 {[%clk
0:05:52]} 57. h4 {[%clk 0:00:48]} 57... Qh7 {[%clk 0:05:18]} 58. Qg5 {[%clk
0:00:37]} 58... Ne6 {[%clk 0:05:27]} 59. Qg3 {[%clk 0:00:39]} 59... Nd4 {[%clk
0:05:47]} 60. Kh3 {[%clk 0:00:38]} 60... Qh6 {[%clk 0:05:21]} 61. Qg5 {[%clk
0:00:42]} 61... Qh7 {[%clk 0:05:37]} 62. Qd8 {[%clk 0:00:42]} 62... Qg7 {[%clk
0:04:29]} 63. Qxa5+ {[%clk 0:01:01]} 63... Kb8 {[%clk 0:04:40]} 64. Qa8+ {[%clk
0:01:24]} 64... Kc7 {[%clk 0:05:07]} 65. Qb7+ {[%clk 0:01:49]} 65... Kd8 {[%clk
0:05:31]} 66. Qxg7 {[%clk 0:02:14]} 66... Ne2 {[%clk 0:05:49]} 67. Qg5+ {[%clk
0:02:38]} 67... Ke8 {[%clk 0:06:12]} 68. Bc6+ {[%clk 0:03:04]} 68... Kf7 {[%clk
0:06:21]} 69. Qxf5+ {[%clk 0:03:31]} 69... Kg7 {[%clk 0:06:46]} 70. Qf6+ {[%clk
0:03:55]} 70... Kh7 {[%clk 0:07:10]} 71. Be4+ {[%clk 0:04:18]} 71... Kg8 {[%clk
0:07:36]} 72. Kg4 {[%clk 0:04:03]} 72... Nxf4 {[%clk 0:08:01]} 73. Qxf4 {[%clk
0:04:25]} 73... Kg7 {[%clk 0:08:25]} 74. Qf6+ {[%clk 0:04:52]} 74... Kg8 {[%clk
0:08:48]} 75. Qg6+ {[%clk 0:05:07]} 75... Kh8 {[%clk 0:09:07]} 76. Qh7# {[%clk
0:05:34]} 1-0

[Variant "Standard"]
[Site "Europe Echecs"]

[Event "Championnat du monde jeunes U12F"]
[Date "2024.11.24"]
[White "Abylaykyzy, Bibisara"]
[Black "Kovalskyy, Alicia"]
[WhiteElo "1694"]
[BlackElo "1871"]
[Round "9.21"]
[Result "1/2-1/2"]
[TimeControl "5400+30"]

1. d4 {[%clk 1:30:57]} 1... d5 {[%clk 1:30:57]} 2. c4 {[%clk 1:31:23]} 2... e6
{[%clk 1:31:23]} 3. Nf3 {[%clk 1:31:50]} 3... Nf6 {[%clk 1:31:46]} 4. g3 {[%clk
1:32:17]} 4... Be7 {[%clk 1:32:08]} 5. Bg2 {[%clk 1:32:45]} 5... O-O {[%clk
1:32:33]} 6. O-O {[%clk 1:33:11]} 6... c6 {[%clk 1:32:51]} 7. Nc3 {[%clk
1:33:36]} 7... Nbd7 {[%clk 1:33:14]} 8. Qc2 {[%clk 1:33:40]} 8... dxc4 {[%clk
1:30:11]} 9. Nd1 {[%clk 1:32:29]} 9... b6 {[%clk 1:20:07]} 10. Qxc4 {[%clk
1:32:29]} 10... Bb7 {[%clk 1:18:35]} 11. Nc3 {[%clk 1:32:14]} 11... c5 {[%clk
1:14:35]} 12. Bf4 {[%clk 1:29:11]} 12... cxd4 {[%clk 1:02:22]} 13. Qxd4 {[%clk
1:28:18]} 13... Bc5 {[%clk 1:02:00]} 14. Qd3 {[%clk 1:26:18]} 14... Re8 {[%clk
0:59:51]} 15. Rfd1 {[%clk 1:24:26]} 15... Qe7 {[%clk 0:50:49]} 16. Bd6 {[%clk
1:14:40]} 16... Bxd6 {[%clk 0:49:46]} 17. Qxd6 {[%clk 1:15:02]} 17... Nc5 {[%clk
0:46:50]} 18. Nb5 {[%clk 1:06:37]} 18... Bd5 {[%clk 0:34:12]} 19. Qxe7 {[%clk
1:02:05]} 19... Rxe7 {[%clk 0:33:09]} 20. Ne5 {[%clk 1:02:26]} 20... Bxg2 {[%clk
0:30:09]} 21. Kxg2 {[%clk 1:02:48]} 21... Nd5 {[%clk 0:25:39]} 22. Rac1 {[%clk
1:01:10]} 22... a6 {[%clk 0:23:05]} 23. Nd6 {[%clk 0:53:29]} 23... f6 {[%clk
0:21:54]} 24. Nec4 {[%clk 0:49:49]} 24... Rd8 {[%clk 0:16:14]} 25. e4 {[%clk
0:21:59]} 25... Nb4 {[%clk 0:15:51]} 26. Nxb6 {[%clk 0:20:36]} 26... Nbd3 {[%clk
0:15:13]} 27. Nbc8 {[%clk 0:18:49]} 27... Rc7 {[%clk 0:12:54]} 28. Rxd3 {[%clk
0:18:55]} 28... Rcxc8 {[%clk 0:12:46]} 29. Nxc8 {[%clk 0:19:20]} 29... Nxd3
{[%clk 0:13:11]} 30. Rc7 {[%clk 0:15:45]} 30... Nxb2 {[%clk 0:12:30]} 31. Ne7+
{[%clk 0:16:00]} 31... Kf8 {[%clk 0:12:55]} 32. Nc6 {[%clk 0:12:03]} 32... Rd2
{[%clk 0:11:31]} 33. Rc8+ {[%clk 0:11:46]} 33... Kf7 {[%clk 0:11:50]} 34. Rc7+
{[%clk 0:12:12]} 34... Kf8 {[%clk 0:11:19]} 35. Ra7 {[%clk 0:10:37]} 35... Nd1
{[%clk 0:10:48]} 36. Rxa6 {[%clk 0:09:27]} 36... Nxf2 {[%clk 0:05:07]} 37. Kf3
{[%clk 0:09:26]} 37... Nd1 {[%clk 0:05:13]} 38. Ra8+ {[%clk 0:04:25]} 38... Kf7
{[%clk 0:05:36]} 39. Ra7+ {[%clk 0:04:45]} 39... Kf8 {[%clk 0:03:09]} 40. Ra8+
{[%clk 0:05:05]} 40... Kf7 {[%clk 0:03:36]} 41. Ra7+ {[%clk 0:05:15]} 1/2-1/2

[Variant "Standard"]
[Site "Europe Echecs"]

[Event "Championnat du monde jeunes U12F"]
[Date "2024.11.24"]
[White "Ahmed Mohamed, Zakaa"]
[Black "Huang, Lucia"]
[WhiteElo "1866"]
[BlackElo "1621"]
[Round "9.22"]
[Result "1-0"]
[TimeControl "5400+30"]

1. e4 {[%clk 1:30:57]} 1... e5 {[%clk 1:30:55]} 2. Nf3 {[%clk 1:31:20]} 2... Nc6
{[%clk 1:31:19]} 3. Bc4 {[%clk 1:31:34]} 3... Bc5 {[%clk 1:31:42]} 4. c3 {[%clk
1:31:57]} 4... Nf6 {[%clk 1:32:00]} 5. d3 {[%clk 1:32:18]} 5... O-O {[%clk
1:31:57]} 6. O-O {[%clk 1:32:42]} 6... d6 {[%clk 1:32:20]} 7. h3 {[%clk
1:33:07]} 7... h6 {[%clk 1:32:32]} 8. Re1 {[%clk 1:33:20]} 8... Re8 {[%clk
1:32:07]} 9. Nbd2 {[%clk 1:33:40]} 9... Be6 {[%clk 1:32:09]} 10. Bb5 {[%clk
1:34:03]} 10... a6 {[%clk 1:32:20]} 11. Ba4 {[%clk 1:34:26]} 11... b5 {[%clk
1:31:28]} 12. Bc2 {[%clk 1:34:45]} 12... Qd7 {[%clk 1:31:12]} 13. Nf1 {[%clk
1:33:06]} 13... d5 {[%clk 1:27:56]} 14. Qe2 {[%clk 1:26:58]} 14... dxe4 {[%clk
1:21:53]} 15. dxe4 {[%clk 1:27:07]} 15... Rad8 {[%clk 1:16:43]} 16. Ne3 {[%clk
1:23:22]} 16... Qd6 {[%clk 1:08:39]} 17. Nh4 {[%clk 1:09:22]} 17... Ne7 {[%clk
1:06:28]} 18. Qf3 {[%clk 1:06:20]} 18... c6 {[%clk 1:04:18]} 19. Nf1 {[%clk
1:01:20]} 19... Bd7 {[%clk 0:58:33]} 20. Rd1 {[%clk 1:00:46]} 20... Qc7 {[%clk
0:50:21]} 21. Bxh6 {[%clk 0:59:49]} 21... Kh7 {[%clk 0:39:05]} 22. Bg5 {[%clk
0:58:29]} 22... Neg8 {[%clk 0:38:54]} 23. Ng3 {[%clk 0:57:50]} 23... Be6 {[%clk
0:35:31]} 24. Rxd8 {[%clk 0:57:46]} 24... Rxd8 {[%clk 0:35:53]} 25. b4 {[%clk
0:53:16]} 25... Be7 {[%clk 0:34:47]} 26. Ngf5 {[%clk 0:52:32]} 26... Bf8 {[%clk
0:29:29]} 27. Ne3 {[%clk 0:48:49]} 27... c5 {[%clk 0:25:10]} 28. bxc5 {[%clk
0:34:48]} 28... Qxc5 {[%clk 0:25:22]} 29. Nd5 {[%clk 0:27:14]} 29... Rc8 {[%clk
0:15:34]} 30. Nxf6+ {[%clk 0:23:39]} 30... Nxf6 {[%clk 0:15:59]} 31. Bxf6 {[%clk
0:23:59]} 31... gxf6 {[%clk 0:16:25]} 32. Qh5+ {[%clk 0:23:52]} 32... Bh6 {[%clk
0:16:39]} 33. Nf5 {[%clk 0:22:59]} 33... Bxf5 {[%clk 0:16:49]} 34. Qxf5+ {[%clk
0:23:23]} 34... Kg7 {[%clk 0:17:05]} 35. Bb3 {[%clk 0:22:59]} 35... Qxc3 {[%clk
0:16:33]} 36. Rd1 {[%clk 0:23:22]} 36... Rc7 {[%clk 0:11:47]} 37. Qg4+ {[%clk
0:20:39]} 37... Kf8 {[%clk 0:10:45]} 38. g3 {[%clk 0:15:53]} 38... a5 {[%clk
0:09:40]} 39. Kg2 {[%clk 0:15:31]} 39... a4 {[%clk 0:09:42]} 40. Rd8+ {[%clk
0:15:36]} 40... Ke7 {[%clk 0:09:33]} 41. Qg8 {[%clk 0:15:50]} 41... Qc6 {[%clk
0:09:44]} 42. Bd5 {[%clk 0:16:08]} 42... Rd7 {[%clk 0:07:18]} 43. Qe8+ {[%clk
0:16:15]} 43... Kd6 {[%clk 0:07:41]} 44. Bxc6 {[%clk 0:16:39]} 44... Rxd8 {[%clk
0:07:53]} 45. Qxd8+ {[%clk 0:17:04]} 45... Kxc6 {[%clk 0:08:15]} 46. Qxf6+
{[%clk 0:17:24]} 46... Kc5 {[%clk 0:08:41]} 47. Qxh6 {[%clk 0:17:45]} 47... b4
{[%clk 0:09:03]} 48. Qc1+ {[%clk 0:18:07]} 48... Kd4 {[%clk 0:09:28]} 49. Qb2+
{[%clk 0:18:34]} 49... Kc4 {[%clk 0:09:48]} 50. h4 a3 {[%clk 0:10:08]} 51. Qb3+
{[%clk 0:19:21]} 51... Kc5 {[%clk 0:10:32]} 52. h5 {[%clk 0:19:47]} 52... Kd4
{[%clk 0:10:55]} 53. h6 {[%clk 0:20:11]} 53... Kxe4 {[%clk 0:11:16]} 54. h7
{[%clk 0:20:36]} 54... Kf5 {[%clk 0:11:39]} 55. h8=R {[%clk 0:20:59]} 55... Kg4
{[%clk 0:11:59]} 56. Qf3+ {[%clk 0:21:21]} 56... Kg5 {[%clk 0:12:20]} 57. Rg8+
{[%clk 0:21:41]} 57... Kh6 {[%clk 0:12:41]} 58. Qf6+ {[%clk 0:22:08]} 58... Kh5
{[%clk 0:13:04]} 59. Qg5# {[%clk 0:22:33]} 1-0

[Variant "Standard"]
[Site "Europe Echecs"]

[Event "Championnat du monde jeunes U12F"]
[Date "2024.11.24"]
[White "Telyuk, Anastasiya"]
[Black "Tu, Audrey"]
[WhiteElo "1603"]
[BlackElo "1765"]
[Round "9.23"]
[Result "1/2-1/2"]
[TimeControl "5400+30"]

1. c4 {[%clk 1:30:58]} 1... c5 {[%clk 1:30:49]} 2. Nf3 {[%clk 1:31:17]} 2... g6
{[%clk 1:26:29]} 3. d4 {[%clk 1:29:13]} 3... Bg7 {[%clk 1:18:40]} 4. Nc3 {[%clk
1:22:09]} 4... cxd4 {[%clk 1:14:39]} 5. Nxd4 {[%clk 1:21:23]} 5... Nf6 {[%clk
1:11:15]} 6. e4 {[%clk 1:18:47]} 6... d6 {[%clk 1:07:28]} 7. Be2 {[%clk
1:16:30]} 7... Nc6 {[%clk 1:04:32]} 8. Nc2 {[%clk 1:14:37]} 8... O-O {[%clk
1:01:27]} 9. Be3 {[%clk 1:13:56]} 9... b6 {[%clk 0:55:54]} 10. O-O {[%clk
1:12:29]} 10... Bb7 {[%clk 0:54:40]} 11. f3 {[%clk 1:10:47]} 11... Rc8 {[%clk
0:49:50]} 12. Qd2 {[%clk 1:08:15]} 12... Ne5 {[%clk 0:46:06]} 13. b3 {[%clk
1:06:44]} 13... Re8 {[%clk 0:44:28]} 14. Rac1 {[%clk 1:03:33]} 14... Qc7 {[%clk
0:38:12]} 15. Rfd1 {[%clk 1:00:54]} 15... Ba6 {[%clk 0:34:11]} 16. Nb4 {[%clk
0:56:18]} 16... Bb7 {[%clk 0:32:33]} 17. Nbd5 {[%clk 0:54:03]} 17... Nxd5 {[%clk
0:32:00]} 18. exd5 {[%clk 0:52:12]} 18... Nd7 {[%clk 0:28:58]} 19. Bd4 {[%clk
0:49:08]} 19... Nc5 {[%clk 0:27:06]} 20. Bxg7 {[%clk 0:47:03]} 20... Kxg7 {[%clk
0:27:21]} 21. Ne4 {[%clk 0:44:37]} 21... Rcd8 {[%clk 0:24:05]} 22. Qf4 {[%clk
0:41:32]} 22... h6 {[%clk 0:22:02]} 23. Qd2 {[%clk 0:37:00]} 23... Bc8 {[%clk
0:21:11]} 24. Nxc5 {[%clk 0:35:35]} 24... dxc5 {[%clk 0:20:20]} 25. Qb2+ {[%clk
0:35:06]} 25... Kh7 {[%clk 0:20:03]} 26. Bd3 {[%clk 0:32:31]} 26... Qf4 {[%clk
0:19:01]} 27. Bb1 {[%clk 0:27:06]} 27... e6 {[%clk 0:16:53]} 28. dxe6 {[%clk
0:26:59]} 28... Bxe6 {[%clk 0:16:47]} 29. Be4 {[%clk 0:25:03]} 1/2-1/2

[Variant "Standard"]
[Site "Europe Echecs"]

[Event "Championnat du monde jeunes U12F"]
[Date "2024.11.24"]
[White "Chichinadze, Anastasia"]
[Black "Baruch, Amit"]
[WhiteElo "1682"]
[BlackElo "1747"]
[Round "9.24"]
[Result "1/2-1/2"]
[TimeControl "5400+30"]

1. e4 {[%clk 1:30:45]} 1... e5 {[%clk 1:30:53]} 2. Nf3 {[%clk 1:31:08]} 2... Nc6
{[%clk 1:31:17]} 3. Bc4 {[%clk 1:30:56]} 3... Bc5 {[%clk 1:31:39]} 4. c3 {[%clk
1:31:22]} 4... Nf6 {[%clk 1:32:03]} 5. d3 {[%clk 1:31:49]} 5... a6 {[%clk
1:32:20]} 6. O-O {[%clk 1:32:08]} 6... d6 {[%clk 1:32:45]} 7. Bb3 {[%clk
1:32:28]} 7... Ba7 {[%clk 1:31:54]} 8. Re1 {[%clk 1:31:38]} 8... h6 {[%clk
1:32:02]} 9. Nbd2 {[%clk 1:29:05]} 9... g5 {[%clk 1:31:58]} 10. Nf1 {[%clk
1:06:51]} 10... g4 {[%clk 1:31:56]} 11. N3d2 {[%clk 1:06:48]} 11... h5 {[%clk
1:31:42]} 12. Nc4 {[%clk 1:01:55]} 12... h4 {[%clk 1:31:12]} 13. Be3 {[%clk
0:54:37]} 13... g3 {[%clk 1:23:37]} 14. Bxa7 {[%clk 0:48:23]} 14... Rxa7 {[%clk
1:16:21]} 15. Nce3 {[%clk 0:39:52]} 15... gxf2+ {[%clk 1:03:56]} 16. Kxf2 {[%clk
0:40:17]} 16... Nh5 {[%clk 1:00:05]} 17. Nd5 {[%clk 0:28:11]} 17... Be6 {[%clk
0:49:09]} 18. Nfe3 {[%clk 0:24:58]} 18... Ne7 {[%clk 0:40:41]} 19. Nxe7 {[%clk
0:12:37]} 19... Qxe7 {[%clk 0:35:50]} 20. Bxe6 {[%clk 0:10:37]} 20... fxe6
{[%clk 0:34:32]} 21. Ke2 {[%clk 0:08:49]} 21... Nf4+ {[%clk 0:32:43]} 22. Kd2
{[%clk 0:09:00]} 22... Qg5 {[%clk 0:32:04]} 23. Rg1 {[%clk 0:07:34]} 23... Rg8
{[%clk 0:29:42]} 24. Qf3 {[%clk 0:05:30]} 24... Rf8 {[%clk 0:13:49]} 25. Raf1
{[%clk 0:04:32]} 25... Qh6 {[%clk 0:12:12]} 26. h3 {[%clk 0:01:42]} 26... Ra8
{[%clk 0:10:23]} 27. Ng4 {[%clk 0:00:50]} 27... Qg5 {[%clk 0:10:27]} 28. Qe3
{[%clk 0:00:56]} 28... Qg7 {[%clk 0:07:46]} 29. Kc2 {[%clk 0:00:42]} 29... Ke7
{[%clk 0:07:27]} 30. Rf2 {[%clk 0:00:42]} 30... Rg8 {[%clk 0:06:27]} 31. d4
{[%clk 0:00:32]} 31... Qg5 {[%clk 0:04:56]} 32. dxe5 {[%clk 0:00:33]} 32... Nxh3
{[%clk 0:04:49]} 33. exd6+ {[%clk 0:00:34]} 33... cxd6 {[%clk 0:04:58]} 34.
Qxg5+ {[%clk 0:00:34]} 34... Nxg5 {[%clk 0:05:19]} 35. Re1 {[%clk 0:00:34]}
35... Rg6 {[%clk 0:04:33]} 36. e5 {[%clk 0:00:33]} 36... dxe5 {[%clk 0:02:23]}
37. Nxe5 {[%clk 0:00:44]} 37... Rf6 {[%clk 0:02:28]} 38. Ref1 {[%clk 0:00:33]}
38... Rxf2+ {[%clk 0:02:12]} 39. Rxf2 {[%clk 0:01:00]} 39... Rg8 {[%clk
0:02:20]} 40. Rf4 {[%clk 0:00:47]} 40... h3 {[%clk 0:01:53]} 1/2-1/2

[Variant "Standard"]
[Site "Europe Echecs"]

[Event "Championnat du monde jeunes U12F"]
[Date "2024.11.24"]
[White "Bohatyrova, Mariia"]
[Black "Moscovitch, Shelly"]
[WhiteElo "1722"]
[BlackElo "1552"]
[Round "9.25"]
[Result "1-0"]
[TimeControl "5400+30"]

1. e4 {[%clk 1:30:58]} 1... e5 {[%clk 1:30:23]} 2. Nf3 {[%clk 1:31:23]} 2... Nc6
{[%clk 1:30:10]} 3. Bb5 {[%clk 1:31:48]} 3... a6 {[%clk 1:29:27]} 4. Ba4 {[%clk
1:32:14]} 4... Nf6 {[%clk 1:28:31]} 5. Qe2 {[%clk 1:32:23]} 5... b5 {[%clk
1:27:23]} 6. Bb3 {[%clk 1:32:41]} 6... Bc5 {[%clk 1:26:09]} 7. O-O {[%clk
1:32:04]} 7... d6 {[%clk 1:24:40]} 8. c3 {[%clk 1:31:46]} 8... O-O {[%clk
1:23:32]} 9. Rd1 {[%clk 1:31:31]} 9... Bb6 {[%clk 1:20:55]} 10. d3 {[%clk
1:30:55]} 10... h6 {[%clk 1:16:56]} 11. Nbd2 {[%clk 1:29:33]} 11... Ne7 {[%clk
1:15:32]} 12. Nf1 {[%clk 1:21:51]} 12... Ng6 {[%clk 1:13:49]} 13. h3 {[%clk
1:08:12]} 13... Kh8 {[%clk 1:06:54]} 14. g4 {[%clk 0:43:06]} 14... Nxg4 {[%clk
0:53:54]} 15. hxg4 {[%clk 0:40:12]} 15... Bxg4 {[%clk 0:53:15]} 16. N1h2 {[%clk
0:32:49]} 16... Bh5 {[%clk 0:50:08]} 17. Qf1 {[%clk 0:24:48]} 17... Nh4 {[%clk
0:39:11]} 18. Qh3 {[%clk 0:21:31]} 18... Nxf3+ {[%clk 0:26:04]} 19. Nxf3 {[%clk
0:21:51]} 19... Bg6 {[%clk 0:24:18]} 20. Bxh6 {[%clk 0:17:17]} 20... Kg8 {[%clk
0:18:51]} 21. Bg5 {[%clk 0:16:08]} 21... Qc8 {[%clk 0:15:05]} 22. Qxc8 {[%clk
0:16:03]} 22... Raxc8 {[%clk 0:15:14]} 23. Kg2 {[%clk 0:16:15]} 23... Bh5 {[%clk
0:14:22]} 24. Rh1 {[%clk 0:16:21]} 24... g6 {[%clk 0:14:06]} 25. Bf6 {[%clk
0:15:27]} 25... Rfe8 {[%clk 0:13:56]} 26. Ng5 {[%clk 0:15:35]} 26... Rf8 {[%clk
0:13:39]} 27. Be7 {[%clk 0:13:53]} 1-0

[Variant "Standard"]
[Site "Europe Echecs"]

[Event "Championnat du monde jeunes U12F"]
[Date "2024.11.24"]
[White "Tursunalieva, Nurelina"]
[Black "Zavivaeva, Angelina"]
[WhiteElo "1701"]
[BlackElo "1499"]
[Round "9.26"]
[Result "0-1"]
[TimeControl "5400+30"]

1. e4 {[%clk 1:30:58]} 1... c6 {[%clk 1:30:59]} 2. d4 {[%clk 1:31:21]} 2... d5
{[%clk 1:31:26]} 3. e5 {[%clk 1:31:44]} 3... Bf5 {[%clk 1:31:53]} 4. Bd3 {[%clk
1:32:09]} 4... Bxd3 {[%clk 1:32:19]} 5. Qxd3 {[%clk 1:32:35]} 5... e6 {[%clk
1:32:44]} 6. c3 {[%clk 1:32:52]} 6... Ne7 {[%clk 1:32:25]} 7. Nf3 {[%clk
1:32:14]} 7... Nd7 {[%clk 1:32:36]} 8. b3 {[%clk 1:29:04]} 8... Nf5 {[%clk
1:29:27]} 9. Bb2 {[%clk 1:24:31]} 9... Be7 {[%clk 1:25:24]} 10. Nbd2 {[%clk
1:19:06]} 10... O-O {[%clk 1:19:17]} 11. O-O {[%clk 1:15:18]} 11... Qc7 {[%clk
1:15:29]} 12. Rac1 {[%clk 1:09:30]} 12... Rfd8 {[%clk 1:11:50]} 13. Qe2 {[%clk
1:02:16]} 13... Nb6 {[%clk 1:05:35]} 14. Rfd1 {[%clk 1:00:02]} 14... a5 {[%clk
1:04:10]} 15. a3 {[%clk 0:58:05]} 15... a4 {[%clk 0:59:18]} 16. b4 {[%clk
0:58:24]} 16... Nd7 {[%clk 0:51:33]} 17. c4 {[%clk 0:50:01]} 17... dxc4 {[%clk
0:47:30]} 18. Nxc4 {[%clk 0:49:10]} 18... Nb6 {[%clk 0:43:25]} 19. Nxb6 {[%clk
0:42:25]} 19... Qxb6 {[%clk 0:43:43]} 20. g4 {[%clk 0:35:02]} 20... Nh4 {[%clk
0:39:20]} 21. Nxh4 {[%clk 0:32:32]} 21... Bxh4 {[%clk 0:39:46]} 22. Rd3 {[%clk
0:30:58]} 22... Bg5 {[%clk 0:34:41]} 23. Rf1 {[%clk 0:26:07]} 23... Qb5 {[%clk
0:27:54]} 24. Qc2 {[%clk 0:24:54]} 24... Qd5 {[%clk 0:22:40]} 25. Rh3 {[%clk
0:24:38]} 25... g6 {[%clk 0:22:30]} 26. f4 {[%clk 0:23:06]} 26... Be7 {[%clk
0:22:51]} 27. f5 {[%clk 0:20:52]} 27... Bf8 {[%clk 0:09:37]} 28. Qf2 {[%clk
0:06:52]} 28... Qe4 {[%clk 0:05:47]} 29. Rg3 {[%clk 0:03:50]} 29... Rd7 {[%clk
0:04:31]} 30. Re1 {[%clk 0:04:00]} 30... Qd5 {[%clk 0:04:41]} 31. f6 {[%clk
0:04:12]} 31... h6 {[%clk 0:02:00]} 32. Rh3 {[%clk 0:04:18]} 32... b6 {[%clk
0:01:04]} 33. Ree3 {[%clk 0:00:37]} 33... c5 {[%clk 0:00:41]} 34. Rd3 {[%clk
0:00:35]} 34... Qe4 {[%clk 0:00:44]} 35. g5 {[%clk 0:00:33]} 35... h5 {[%clk
0:00:37]} 36. bxc5 {[%clk 0:00:42]} 36... bxc5 {[%clk 0:00:57]} 37. Rhe3 {[%clk
0:00:53]} 37... Qg4+ {[%clk 0:00:40]} 38. Rg3 {[%clk 0:01:09]} 38... Qe4 {[%clk
0:00:55]} 39. Rd2 {[%clk 0:00:40]} 39... Rb8 {[%clk 0:00:33]} 40. Re2 {[%clk
0:00:37]} 40... Qb1+ {[%clk 0:00:44]} 41. Kg2 {[%clk 0:01:00]} 41... cxd4 {[%clk
0:00:40]} 42. Bxd4 {[%clk 0:01:18]} 42... Rb3 {[%clk 0:00:36]} 43. Bc5 {[%clk
0:00:50]} 43... Rxg3+ {[%clk 0:00:41]} 44. hxg3 {[%clk 0:01:09]} 44... Qb7+
{[%clk 0:00:59]} 45. Kh2 {[%clk 0:00:32]} 45... Rd1 {[%clk 0:00:41]} 46. g4
{[%clk 0:00:32]} 46... Qh1+ {[%clk 0:00:41]} 47. Kg3 {[%clk 0:00:37]} 47... h4+
{[%clk 0:00:49]} 48. Kf4 {[%clk 0:00:57]} 48... Rf1 {[%clk 0:00:49]} 49. Be7
{[%clk 0:00:32]} 49... Qh2+ {[%clk 0:00:37]} 50. Ke3 {[%clk 0:00:32]} 50... Rxf2
{[%clk 0:00:43]} 51. Rxf2 {[%clk 0:00:53]} 51... Qxe5+ {[%clk 0:00:59]} 0-1

[Variant "Standard"]
[Site "Europe Echecs"]